bitfinex/quotes_ETHUSD_20250507
["timestamp","ask_amount","ask_price","bid_price","bid_amount"]
[1746577421655,0.06784585,1842.7,1841.9,0.03160924]
[1746577421831,0.06784585,1842.7,1841.9,0.0316146]
[1746577423625,0.8297,1842.8,1841.9,0.0316146]
[1746577423829,0.8297,1842.8,1841.9,0.03159253]
[1746577424031,0.8297,1842.8,1841.9,0.40596381]
[1746577424243,0.8297,1842.8,1841.9,0.37439532]
[1746577424741,0.8297,1842.8,1841.9,0.03156971]
[1746577424932,0.8297,1842.8,1841.8,0.71236068]
[1746577425133,0.8297,1842.8,1841.9,0.03157294]
[1746577425458,0.8297,1842.8,1842.0,11.728]
[1746577425749,0.8297,1842.8,1842.1,0.03157338]
[1746577425951,0.8297,1842.8,1842.1,1.20753072]
[1746577426358,0.8297,1842.8,1842.1,1.17595734]
[1746577426554,0.8297,1842.8,1842.2,0.03157388]
[1746577426853,0.8297,1842.8,1842.1,1.17595734]
[1746577427238,0.8297,1842.8,1842.2,0.03157481]
[1746577428057,0.7635,1843.2,1842.1,1.93455734]
[1746577428427,0.7635,1843.2,1842.2,0.03156863]
[1746577428670,0.7635,1843.2,1842.2,0.03155536]
[1746577428826,0.7635,1843.2,1842.1,1.93455734]
[1746577429026,0.7635,1843.2,1842.2,0.03156224]
[1746577429430,0.7635,1843.2,1842.3,11.627]
[1746577429769,0.7635,1843.2,1842.4,12.8397]
[1746577430355,0.7635,1843.2,1842.4,11.677]
[1746577430529,0.06782721,1843.1,1842.4,11.677]
[1746577431077,0.751,1843.0,1842.4,11.677]
[1746577431271,0.06783338,1842.9,1842.4,11.677]
[1746577431478,0.751,1843.0,1842.4,11.677]
[1746577431662,0.85003418,1842.9,1842.4,11.677]
[1746577431832,0.85003418,1842.9,1842.1,11.527]
[1746577432231,0.85003418,1842.9,1841.9,11.677]
[1746577432468,0.85003418,1842.9,1841.8,0.71236068]
[1746577432741,0.7921,1842.8,1841.9,0.03161528]
[1746577432960,0.7921,1842.8,1841.7,0.03161528]
[1746577432961,0.06784887,1842.7,1841.7,0.03161528]
[1746577433142,0.06784887,1842.7,1841.6,11.497]
[1746577433359,0.06784887,1842.7,1841.7,0.03161528]
[1746577433676,0.7898,1842.6,1841.6,11.497]
[1746577433856,0.0678489,1842.5,1841.7,1.1497]
[1746577435646,0.8193,1842.4,1841.6,11.347]
[1746577435860,0.8185,1842.2,1841.5,0.3115027]
[1746577436064,0.8185,1842.1,1841.6,0.03164218]
[1746577436702,0.8185,1842.1,1841.6,0.03161378]
[1746577437567,0.83815229,1842.7,1841.6,0.85481378]
[1746577437768,0.7703,1842.7,1841.6,0.85481378]
[1746577437974,0.7703,1842.7,1841.6,0.8232]
[1746577438377,0.7703,1842.7,1841.7,0.03160316]
[1746577438565,0.7703,1842.7,1841.8,11.289]
[1746577438769,0.7703,1842.7,1841.9,1.1289]
[1746577439998,0.7703,1842.7,1842.0,0.03160342]
[1746577440209,0.83814209,1842.7,1842.0,0.03160342]
[1746577440409,0.7703,1842.7,1842.0,0.03160342]
[1746577440567,0.7703,1842.7,1841.8,11.289]
[1746577444281,0.7703,1842.7,1841.7,6.04]
[1746577444482,0.7688,1842.5,1841.8,11.056]
[1746577445221,0.7688,1842.5,1841.9,0.03161344]
[1746577445391,0.7688,1842.5,1841.8,11.056]
[1746577445775,0.7688,1842.5,1841.9,0.03161868]
[1746577446921,0.7688,1842.5,1842.0,11.045]
[1746577447077,0.7688,1842.5,1842.1,1.1045]
[1746577447809,0.7688,1842.5,1842.0,11.045]
[1746577449019,7.284,2031.7,1842.1,0.03158702]
[1746577449020,0.8092,1843.1,1842.1,0.03158702]
[1746577449184,0.8092,1843.1,1842.2,19.565]
[1746577449582,21.246,1844.4,1842.2,19.565]
[1746577449583,0.8092,1843.8,1842.4,6.5489]
[1746577449808,0.8092,1843.8,1842.5,14.55038939]
[1746577450118,0.8092,1843.8,1842.5,15.91889]
[1746577450521,0.06780182,1843.7,1842.5,12.91889]
[1746577450720,0.8092,1843.7,1842.5,12.91889]
[1746577450932,0.7603,1843.5,1842.5,12.91889]
[1746577451235,0.7603,1843.3,1842.6,1.32345203]
[1746577451938,0.06782275,1843.2,1842.6,1.291889]
[1746577452239,0.06782275,1843.2,1842.7,0.03156452]
[1746577452537,0.7603,1843.3,1842.7,0.03156452]
[1746577452732,0.7603,1843.3,1842.7,11.07456452]
[1746577452936,0.7603,1843.3,1842.8,1.10745645]
[1746577453238,0.7603,1843.3,1842.9,0.03154835]
[1746577453929,0.8019,1843.7,1842.9,0.03154835]
[1746577454105,0.8019,1843.7,1842.8,1.10745645]
[1746577454307,0.8019,1843.7,1842.9,0.03152049]
[1746577454838,0.8019,1843.7,1842.8,1.10745645]
[1746577455036,0.82089323,1843.6,1842.7,0.03155695]
[1746577455439,0.82089323,1843.6,1842.7,2.18091264]
[1746577455737,0.7531,1843.6,1842.7,2.14935569]
[1746577455944,0.7531,1843.6,1842.8,1.43152357]
[1746577456319,0.7531,1843.6,1842.8,1.4]
[1746577456915,0.7531,1843.6,1842.9,21.424]
[1746577457654,0.06780973,1843.5,1842.9,10.736]
[1746577457827,0.06780973,1843.5,1843.0,0.03154872]
[1746577458536,0.06780973,1843.5,1842.8,21.40254873]
[1746577458729,0.06780973,1843.5,1842.8,10.736]
[1746577458935,0.06780973,1843.5,1842.8,21.358]
[1746577459556,0.7715,1843.4,1842.6,0.3405932]
[1746577459742,0.06782816,1843.3,1842.7,0.03157107]
[1746577459946,0.8278,1843.2,1842.7,0.03157107]
[1746577460151,0.06782705,1843.1,1842.6,10.9345932]
[1746577460351,0.8278,1843.2,1842.7,0.02679751]
[1746577461242,0.89562597,1843.1,1842.6,0.3405932]
[1746577461427,1.30550343,1843.1,1842.6,0.31379569]
[1746577461623,0.47770343,1843.1,1842.6,0.31379569]
[1746577461827,0.8278,1843.0,1842.6,0.31379569]
[1746577462077,3.81874386,1842.9,1842.6,0.31379569]
[1746577462228,0.7509,1842.8,1842.6,0.31379569]
[1746577463737,1.18437746,1843.1,1842.7,10.737]
[1746577463942,1.18437746,1843.1,1842.8,0.02678349]
[1746577464775,0.7745,1843.1,1842.8,0.02678349]
[1746577465082,0.40001954,1843.2,1842.8,1.10315269]
[1746577465256,0.8086,1843.4,1842.8,0.02677434]
[1746577465587,0.7595,1843.2,1842.7,10.737]
[1746577465749,0.06783461,1843.1,1842.7,10.737]
[1746577465949,0.7595,1843.0,1842.6,19.87379569]
[1746577466156,0.7595,1843.0,1842.7,0.02681015]
[1746577466366,0.7595,1843.0,1842.7,0.02678757]
[1746577466768,0.7595,1843.0,1842.6,19.87379569]
[1746577466944,0.7595,1843.0,1842.6,0.31379569]
[1746577467340,0.06783608,1842.9,1842.6,0.31379569]
[1746577467548,0.7542,1842.8,1842.6,0.31379569]
[1746577467774,0.06784611,1842.7,1842.6,0.30932498]
[1746577471472,1.16994332,1842.8,1842.6,0.30932498]
[1746577472585,0.06784015,1842.7,1842.6,0.30932498]
[1746577473847,0.6003,1842.6,1842.0,1.0]
[1746577474055,0.0503,1841.7,1840.4,3.74614096]
[1746577474347,0.0503,1841.3,1840.8,0.40991415]
[1746577474573,0.11820369,1841.3,1840.8,0.40991415]
[1746577475450,0.0503,1841.3,1840.9,0.02693985]
[1746577475642,0.0503,1841.3,1840.8,0.40768172]
[1746577478246,0.0503,1841.3,1840.8,0.40463186]
[1746577478878,0.3621204,1841.3,1840.8,0.40463186]
[1746577479050,0.06790407,1841.2,1840.8,0.40463186]
[1746577479258,0.11820553,1841.3,1840.8,0.40463186]
[1746577479479,0.0503,1841.3,1840.8,0.40463186]
[1746577481067,0.06789975,1841.4,1840.8,0.40463186]
[1746577481068,0.06789405,1841.5,1840.9,0.02693368]
[1746577481273,0.64218752,1841.6,1840.9,0.02693368]
[1746577481480,0.64218752,1841.6,1840.9,10.19593368]
[1746577481688,0.06788753,1841.9,1841.0,11.45959337]
[1746577481876,0.06787,1842.2,1841.1,0.02688559]
[1746577482389,0.06787,1842.2,1841.2,0.78]
[1746577482390,0.47440877,1842.2,1841.2,0.78]
[1746577482570,0.06787,1842.2,1841.2,0.78]
[1746577482887,0.06787,1842.2,1841.3,0.02688305]
[1746577483986,0.06355616,1842.2,1841.2,0.78]
[1746577484783,5.27988294,1842.2,1841.2,0.78]
[1746577485080,3.52798829,1842.1,1841.2,0.78]
[1746577485283,0.06355864,1842.0,1841.3,0.03120438]
[1746577487705,3.5548673,1841.9,1841.2,0.78]
[1746577487916,0.06356566,1841.8,1841.3,0.03121318]
[1746577489015,3.04858226,1841.8,1841.2,0.78]
[1746577489218,3.70892722,1841.8,1841.2,0.78]
[1746577489423,0.5743,1841.7,1840.8,1.19753186]
[1746577489588,3.0,1841.5,1840.8,1.19753186]
[1746577489788,0.04859412,1841.4,1840.9,0.04622555]
[1746577489995,0.04859412,1841.4,1840.8,1.19753186]
[1746577490199,0.04859412,1841.4,1841.3,5.43094552]
[1746577490880,0.04859412,1841.4,1841.2,5.43113102]
[1746577491075,0.04859412,1841.4,1841.2,5.43105056]
[1746577491281,0.45012133,1841.4,1841.2,5.43103033]
[1746577491584,0.5743,1842.0,1841.8,5.42946293]
[1746577491783,0.5743,1842.0,1841.4,5.43065059]
[1746577491784,0.64217715,1842.0,1841.7,5.42961554]
[1746577492287,1.05617922,1842.0,1841.7,5.42961554]
[1746577493036,3.5548673,1841.9,1840.8,6.62987793]
[1746577493320,0.06787917,1841.8,1841.5,5.43011235]
[1746577493499,0.06787917,1841.8,1841.2,5.43115895]
[1746577493500,0.06787917,1841.8,1841.0,15.22779724]
[1746577493680,0.43015382,1841.8,1841.5,5.43018748]
[1746577493880,0.43015382,1841.8,1841.6,5.43003628]
[1746577494131,0.43015382,1841.8,1841.5,5.43012752]
[1746577494822,3.43015382,1841.8,1841.5,5.43012752]
[1746577495314,3.5548673,1841.6,1841.3,5.43078967]
[1746577495518,3.43015382,1841.8,1841.3,5.4306518]
[1746577495519,0.06788716,1841.5,1841.3,5.4306518]
[1746577495723,0.06788716,1841.7,1841.5,5.43019716]
[1746577496211,0.06787921,1841.8,1841.5,5.43019716]
[1746577496381,0.06787921,1841.8,1841.5,10.86040787]
[1746577496582,0.06787921,1841.8,1841.5,5.43019716]
[1746577496814,0.06787921,1841.8,1841.6,5.43005349]
[1746577497016,0.06787921,1841.8,1841.7,5.42976597]
[1746577497218,0.06787481,1841.9,1841.8,5.42947116]
[1746577500548,0.5743,1842.9,1842.6,5.4268893]
[1746577500695,0.06784128,1842.8,1842.6,5.42693168]
[1746577500896,0.06784128,1842.8,1842.6,5.42688139]
[1746577501748,0.06784128,1842.8,1842.5,5.42735765]
[1746577501749,3.0,1842.0,1841.3,5.43083492]
[1746577501893,5.97772582,1842.4,1841.3,5.43083492]
[1746577501894,3.5548673,1841.7,1841.3,5.43074918]
[1746577502241,0.06788627,1841.8,1841.5,5.43014057]
[1746577502440,0.06787482,1841.9,1841.7,5.42976597]
[1746577502619,0.06787482,1841.9,1841.7,5.42968066]
[1746577502823,3.43014903,1841.9,1841.4,5.43043317]
[1746577502992,3.5548673,1841.7,1841.4,5.43043317]
[1746577503193,0.06788405,1841.6,1841.5,5.43035568]
[1746577503389,0.06788221,1841.8,1841.6,5.43006081]
[1746577503705,0.06788221,1841.8,1841.7,5.42976597]
[1746577503904,0.06787512,1842.0,1841.9,5.42917639]
[1746577504108,0.06787512,1842.0,1841.7,5.42957709]
[1746577504325,0.06787512,1842.0,1841.5,5.4302036]
[1746577504639,0.06787334,1842.3,1842.2,5.42829225]
[1746577504864,8.49527066,1842.5,1842.0,5.42888165]
[1746577505127,3.06785658,1842.5,1842.1,5.42857066]
[1746577505439,0.47322339,1842.5,1842.4,5.42770299]
[1746577505595,0.40536681,1842.5,1842.4,5.42770299]
[1746577505797,4.19701522,1842.6,1842.4,5.42770299]
[1746577505798,0.06784792,1842.6,1842.5,5.42740841]
[1746577505993,0.06784461,1842.7,1842.5,10.85460789]
[1746577506197,0.06784367,1842.8,1842.7,5.42681934]
[1746577506399,0.0678376,1843.0,1842.8,5.42652485]
[1746577506636,0.48291135,1843.0,1842.8,5.42629576]
[1746577506833,0.0678376,1843.0,1842.9,5.42623039]
[1746577507038,3.62269753,1843.1,1842.8,5.4263841]
[1746577507235,3.62269753,1843.1,1842.9,5.42619795]
[1746577507236,0.06783023,1843.1,1842.9,5.42619795]
[1746577507457,0.5743,1843.6,1843.0,0.04609122]
[1746577507603,0.005,1843.7,1843.6,5.4241701]
[1746577508237,0.005,1843.7,1843.6,5.47020612]
[1746577509136,0.005,1843.7,1843.6,5.3050301]
[1746577509649,0.005,1843.7,1843.6,5.35106197]
[1746577509851,0.005,1843.7,1843.6,6.42400171]
[1746577510011,0.005,1843.7,1843.6,5.3050301]
[1746577510557,0.005,1843.7,1843.6,5.35106132]
[1746577513358,0.00155945,1843.7,1843.6,5.35106132]
[1746577513754,0.00155945,1843.7,1843.6,5.3510531]
[1746577514461,0.00155945,1843.7,1843.6,6.0605301]
[1746577514660,0.00155945,1843.7,1843.6,7.25502592]
[1746577514861,0.00155945,1843.7,1843.6,26.81302592]
[1746577515023,3.0,1844.5,1844.2,5.42225771]
[1746577515559,2.99777623,1844.5,1844.2,5.42225771]
[1746577515921,2.99777623,1844.5,1844.2,5.46824711]
[1746577516126,2.99777623,1844.5,1844.2,5.42225771]
[1746577516326,3.4006267,1844.5,1844.2,5.42225771]
[1746577516555,3.4006267,1844.5,1844.2,5.46823743]
[1746577516742,5.48980431,1844.4,1844.1,9.311]
[1746577516922,5.4222821,1844.3,1844.0,9.491]
[1746577517123,5.42246462,1844.2,1844.0,9.491]
[1746577517324,5.4222821,1844.3,1844.0,9.491]
[1746577517625,5.41982189,1844.1,1843.7,5.42386462]
[1746577517960,5.83599075,1844.1,1843.7,5.46988796]
[1746577518323,0.41616886,1844.1,1843.7,0.04602334]
[1746577518523,0.64359026,1844.3,1844.0,5.42299349]
[1746577518735,8.48941626,1844.5,1844.1,5.46859319]
[1746577519028,3.06778502,1844.5,1844.2,5.42238095]
[1746577519539,0.40093621,1844.5,1844.1,0.04600788]
[1746577519742,6.06439375,1844.8,1844.4,5.42181739]
[1746577520177,5.56012853,1845.3,1844.5,0.04597753]
[1746577520375,5.41919179,1845.3,1844.9,5.42014586]
[1746577520533,5.41919179,1845.3,1844.6,6.23292953]
[1746577520534,5.41954151,1845.2,1844.7,5.42079442]
[1746577520732,5.48710644,1845.3,1844.8,5.46637721]
[1746577520947,5.41877125,1845.5,1844.8,10.28065934]
[1746577521159,5.41899622,1845.4,1845.0,5.41993857]
[1746577521372,0.0677406,1845.5,1845.1,5.41975493]
[1746577521671,4.05350998,1845.6,1845.2,0.04592408]
[1746577521836,4.05350998,1845.6,1845.1,5.41951636]
[1746577521837,5.41864568,1845.5,1845.1,5.41951636]
[1746577522032,5.41894201,1845.4,1844.8,15.65521871]
[1746577522237,5.41872644,1845.5,1845.0,5.42004911]
[1746577522738,5.41872644,1845.5,1845.1,5.41963745]
[1746577522938,6.47193729,1845.6,1845.2,5.46526856]
[1746577523271,0.64719754,1845.6,1845.5,5.41858574]
[1746577523475,0.64719754,1845.6,1845.5,14.54858574]
[1746577524828,0.005,1845.9,1845.7,5.41771397]
[1746577525032,0.005,1845.9,1845.8,0.04586686]
[1746577525358,0.005,1845.9,1845.8,5.46357192]
[1746577525741,0.005,1845.9,1845.8,0.04586686]
[1746577525939,0.005,1845.9,1845.6,5.41815906]
[1746577526138,0.005,1845.9,1845.7,5.46384917]
[1746577526445,0.40304422,1845.9,1845.7,5.46384917]
[1746577526644,0.005,1845.9,1845.7,0.04587436]
[1746577526977,0.005,1845.9,1845.7,5.46363742]
[1746577527143,0.005,1845.9,1845.7,0.04587436]
[1746577527347,5.49026927,1845.9,1845.3,5.41892997]
[1746577527558,0.005,1845.9,1845.5,5.41858574]
[1746577527744,0.005,1845.9,1845.6,5.41802411]
[1746577527944,0.005,1845.9,1845.7,5.46385876]
[1746577528174,0.005,1845.9,1845.7,0.04586937]
[1746577528377,0.005,1845.9,1845.8,5.41770506]
[1746577528747,0.005,1845.9,1845.8,0.04586871]
[1746577529672,0.005,1845.9,1845.7,5.4179567]
[1746577529875,0.005,1845.9,1845.4,5.41871332]
[1746577530079,0.005,1845.9,1845.3,2.440883]
[1746577530080,5.41821138,1845.7,1845.3,2.440883]
[1746577530275,5.41821138,1845.7,1845.2,24.3652364]
[1746577530477,5.48551453,1845.8,1845.2,18.9459]
[1746577530478,0.64352486,1845.8,1845.2,18.9459]
[1746577530678,5.41887937,1845.4,1844.8,9.972]
[1746577530879,5.42125313,1844.6,1844.3,9.193]
[1746577531084,0.06776217,1844.9,1844.3,9.193]
[1746577531288,5.42082319,1844.8,1844.4,0.04597257]
[1746577531453,5.42124562,1844.6,1844.4,0.04597257]
[1746577531657,5.42110048,1844.7,1844.3,0.04597322]
[1746577531991,3.9447337,1844.9,1844.5,5.4212841]
[1746577532147,0.40145727,1844.9,1844.6,5.42097252]
[1746577532495,3.06775566,1845.1,1844.3,6.05170003]
[1746577532784,5.42080566,1844.8,1844.3,5.42188116]
[1746577533144,5.42080974,1844.8,1844.4,5.42179164]
[1746577533501,8.96376224,1844.9,1844.2,10.0213]
[1746577533502,3.54327643,1844.9,1844.2,10.0213]
[1746577533794,5.42135407,1844.6,1844.2,15.44353976]
[1746577533940,5.42093565,1844.7,1844.2,10.0213]
[1746577534137,10.84295417,1844.6,1844.2,10.0213]
[1746577534457,5.42156497,1844.5,1844.2,9.193]
[1746577534784,5.42166325,1844.5,1844.2,9.193]
[1746577534938,0.39730679,1844.6,1844.3,0.04598032]
[1746577535137,0.06776464,1844.8,1844.5,5.42151567]
[1746577535342,5.48814404,1844.9,1844.5,5.46748772]
[1746577535582,0.5758,1845.0,1844.5,0.04597205]
[1746577535736,0.41138587,1845.1,1844.7,5.42078536]
[1746577535941,3.0,1845.1,1844.7,5.42078536]
[1746577536201,3.0,1845.1,1844.8,5.42059978]
[1746577536491,5.48725184,1845.2,1844.8,5.42059978]
[1746577536792,5.48725184,1845.2,1844.7,5.42072185]
[1746577536959,3.0,1845.1,1844.7,10.84146414]
[1746577537142,3.0,1845.1,1844.7,5.42072185]
[1746577537341,3.0,1845.1,1844.7,10.84144203]
[1746577537542,3.0,1845.1,1844.7,5.42072018]
[1746577538047,3.0,1845.1,1844.5,5.42150989]
[1746577538389,0.40742198,1845.1,1844.9,5.42023714]
[1746577538543,0.40742198,1845.1,1844.9,0.04593473]
[1746577538854,5.4195404,1845.2,1844.9,0.04593473]
[1746577539182,5.41986731,1845.1,1844.9,0.04593473]
[1746577539479,5.4195404,1845.2,1844.7,5.42070755]
[1746577539480,5.41965425,1845.2,1844.8,5.42060359]
[1746577539687,8.96260198,1845.3,1844.9,5.46626678]
[1746577539871,9.03034794,1845.3,1844.9,5.46626678]
[1746577540180,3.61102239,1845.3,1844.9,0.04593476]
[1746577540380,5.41971017,1845.2,1844.7,5.42064274]
[1746577540592,5.41986509,1845.1,1844.7,10.84136247]
[1746577540745,8.96261381,1845.3,1844.7,5.4207726]
[1746577540945,5.41968577,1845.2,1844.7,10.8415452]
[1746577541208,5.83215523,1845.2,1844.8,5.42059834]
[1746577541686,5.41976318,1845.1,1844.7,10.84154723]
[1746577541867,5.41993386,1845.1,1844.7,5.4207476]
[1746577542078,4.08395782,1845.1,1844.4,0.8186]
[1746577542387,8.96349232,1845.0,1844.6,5.42107477]
[1746577542594,3.0,1845.1,1844.7,0.04595466]
[1746577542758,0.5758,1845.4,1844.5,0.04593928]
[1746577542759,0.40094979,1845.2,1844.5,0.04593928]
[1746577542966,6.06165406,1845.7,1845.2,5.41918611]
[1746577543165,3.0,1845.6,1845.3,5.46503789]
[1746577543689,3.0,1845.6,1845.3,5.46491951]
[1746577544401,0.005,1845.9,1845.7,5.41787818]
[1746577544570,0.005,1845.9,1845.8,5.46357277]
[1746577546471,0.005,1845.9,1845.8,5.41770506]
[1746577548578,0.005,1845.9,1845.5,0.8002]
[1746577548906,0.005,1845.9,1845.6,5.41815341]
[1746577549099,3.0,1845.7,1845.3,5.41895764]
[1746577549399,3.0,1845.7,1845.4,5.41886282]
[1746577549603,3.0,1845.7,1845.4,5.46476268]
[1746577549805,8.41805262,1845.7,1845.4,0.04589986]
[1746577549968,8.41805262,1845.7,1845.3,5.4190816]
[1746577550167,4.44115728,1845.7,1845.1,5.41964326]
[1746577550402,4.44115728,1845.7,1845.2,5.41941901]
[1746577550403,3.0,1845.7,1845.2,5.41941901]
[1746577550572,8.41805681,1845.7,1845.3,5.41901443]
[1746577550774,5.41835802,1845.6,1845.1,5.41961263]
[1746577550970,8.4181158,1845.7,1845.3,5.4191607]
[1746577551308,5.41834198,1845.6,1845.2,5.41942065]
[1746577551505,5.41184448,1845.6,1845.2,5.41942065]
[1746577551879,5.41829215,1845.6,1845.0,5.41991201]
[1746577552082,10.83812424,1845.4,1844.9,33.57516795]
[1746577552378,0.06773042,1845.5,1845.0,5.41992705]
[1746577552379,5.48650935,1845.5,1845.0,5.41992705]
[1746577552572,5.4865659,1845.5,1844.9,24.95919202]
[1746577552775,5.4190876,1845.4,1844.9,24.95919202]
[1746577552977,5.41909633,1845.4,1844.9,24.95908598]
[1746577553205,5.41930586,1845.3,1844.9,24.95908598]
[1746577553718,5.41947207,1845.2,1844.9,19.539]
[1746577553904,5.4200542,1845.0,1844.9,19.539]
[1746577554204,5.4198738,1845.1,1844.7,5.42085261]
[1746577554400,5.42011651,1845.0,1844.5,5.42147361]
[1746577554575,5.42075951,1844.8,1844.4,23.31351525]
[1746577555318,5.82422468,1844.8,1844.4,6.18551525]
[1746577555625,5.42105084,1844.7,1844.3,14.03796174]
[1746577555770,0.06776418,1844.7,1843.9,5.42314663]
[1746577555971,0.06776418,1844.7,1843.8,8.616]
[1746577555972,5.42262021,1844.2,1843.8,8.616]
[1746577556245,5.42262021,1844.2,1843.5,6.226896]
[1746577556246,3.54327643,1844.2,1843.5,6.226896]
[1746577556372,5.42319649,1844.0,1843.5,8.15928781]
[1746577556724,5.42347365,1843.9,1843.5,8.15928781]
[1746577557070,5.42347365,1843.9,1843.5,2.73499181]
[1746577557278,5.4237271,1843.8,1843.3,24.95987701]
[1746577557537,5.4237271,1843.8,1843.4,5.42463657]
[1746577558108,0.06779123,1843.9,1843.3,28.152]
[1746577558282,5.42415968,1843.7,1843.3,28.152]
[1746577558487,5.82123549,1843.7,1843.3,28.152]
[1746577558697,0.39707581,1843.7,1843.4,5.47065247]
[1746577558906,3.0,1843.8,1843.4,5.47065247]
[1746577559410,5.42414757,1843.7,1843.3,19.535]
[1746577559711,8.42370712,1843.8,1843.3,19.535]
[1746577559913,8.42370712,1843.8,1843.3,24.95990168]
[1746577560121,5.42346252,1843.9,1843.5,5.42442671]
[1746577560407,5.49125921,1843.9,1843.5,5.42442671]
[1746577560611,5.42346252,1843.9,1843.5,5.42442671]
[1746577560923,5.49090022,1844.0,1843.4,5.47075022]
[1746577561086,5.42345817,1843.9,1843.5,5.42427459]
[1746577561303,5.49080338,1844.0,1843.4,5.47067097]
[1746577561507,5.42330793,1843.9,1843.5,5.42429285]
[1746577562038,3.06779564,1843.8,1843.2,0.8026]
[1746577562210,5.4909892,1844.0,1843.5,5.42423198]
[1746577562532,5.83439843,1844.2,1843.8,5.42342248]
[1746577562696,11.25705111,1844.2,1843.7,5.42371018]
[1746577562890,5.83443513,1844.2,1843.8,5.42334295]
[1746577563100,1.22317989,1844.3,1843.5,8.338]
[1746577563317,0.64737989,1844.3,1844.2,5.42240537]
[1746577563517,0.64737989,1844.3,1844.2,22.99316292]
[1746577563726,0.64737989,1844.3,1844.2,22.94720537]
[1746577563940,0.64355886,1845.4,1845.0,5.41985509]
[1746577564142,0.41184617,1845.4,1845.1,5.41952785]
[1746577564341,0.06774513,1845.5,1844.9,0.8268]
[1746577564544,0.5758,1846.0,1845.6,5.41815293]
[1746577564866,5.73871543,1846.2,1845.6,5.41817303]
[1746577565162,5.41814798,1845.7,1845.4,16.689]
[1746577565451,5.41950636,1845.2,1845.0,16.689]
[1746577565653,5.42023199,1845.0,1844.6,0.7868]
[1746577565853,5.42081991,1844.8,1844.5,16.688]
[1746577566041,5.4209152,1844.8,1844.5,16.688]
[1746577566369,5.41899448,1845.4,1844.9,5.42010938]
[1746577566651,6.06226751,1845.5,1845.0,5.4658487]
[1746577566942,5.41889097,1845.4,1845.0,5.46580915]
[1746577567147,10.83805324,1845.4,1845.0,0.04592852]
[1746577567328,5.42024707,1845.0,1844.6,0.8282]
[1746577567531,0.54202471,1845.0,1844.5,22.10949559]
[1746577567736,0.5758,1845.0,1844.6,5.46707952]
[1746577567916,0.5758,1845.0,1844.6,0.04595562]
[1746577568118,0.5758,1845.0,1844.5,16.688]
[1746577568348,5.42034798,1844.9,1844.5,16.688]
[1746577568659,6.06373186,1845.0,1844.5,8.337]
[1746577568953,6.06375738,1845.0,1844.5,13.75835298]
[1746577569155,1.24993288,1845.0,1844.5,8.337]
[1746577569354,5.42045769,1844.9,1844.5,8.337]
[1746577569541,5.42111669,1844.7,1844.1,5.42246625]
[1746577569856,5.42211137,1844.3,1843.6,0.8338]
[1746577570158,8.42217992,1844.3,1843.4,6.25276889]
[1746577570336,5.42263526,1844.2,1843.6,5.42397697]
[1746577570518,0.06775714,1844.1,1843.7,5.42385624]
[1746577570719,0.5758,1844.5,1843.9,5.42328759]
[1746577570914,3.0,1844.6,1844.1,5.42252567]
[1746577571151,3.0,1844.6,1844.1,5.42269941]
[1746577571466,5.42157658,1844.5,1844.0,13.75985282]
[1746577571759,5.42196614,1844.4,1844.0,8.337]
[1746577571920,0.5758,1844.4,1844.0,5.42299327]
[1746577572116,0.5758,1844.4,1844.0,5.42280736]
[1746577572351,0.5758,1844.4,1844.0,5.42273288]
[1746577572562,0.5758,1844.4,1844.0,5.42273029]
[1746577572735,5.42229364,1844.3,1843.8,13.73038427]
[1746577572942,5.42229364,1844.3,1843.8,19.15370882]
[1746577573154,3.0,1844.2,1843.7,5.42375065]
[1746577573364,8.42252892,1844.2,1843.7,5.42365096]
[1746577573649,8.49031485,1844.2,1843.7,5.42365096]
[1746577573854,8.42244767,1844.2,1843.7,6.79976815]
[1746577574150,5.4230299,1844.0,1843.6,13.7610935]
[1746577574352,0.06779192,1843.9,1843.6,8.337]
[1746577574556,0.5758,1843.8,1843.1,19.54]
[1746577574715,5.42436384,1843.6,1843.1,24.96563461]
[1746577574922,5.49228933,1843.5,1843.1,28.00477988]
[1746577575122,0.06781282,1843.5,1843.1,28.00477988]
[1746577575831,5.49228713,1843.5,1843.1,28.00477988]
[1746577576464,5.49228713,1843.5,1843.1,19.54]
[1746577576648,5.4248928,1843.4,1842.9,21.99306135]
[1746577577151,5.42557799,1843.2,1842.9,8.338]
[1746577577753,5.42598746,1843.0,1842.5,5.42713303]
[1746577577960,5.49409205,1842.9,1842.5,5.96984633]
[1746577578290,10.85115053,1843.2,1842.6,5.47309991]
[1746577578452,5.42608188,1843.0,1842.6,5.47310847]
[1746577578650,0.06782656,1843.2,1842.3,5.42778362]
[1746577578651,5.42656235,1842.8,1842.3,5.42778362]
[1746577578953,5.49387434,1843.0,1842.3,2.49727836]
[1746577579159,5.42765651,1842.5,1842.1,8.339]
[1746577579371,5.4955043,1842.5,1842.1,13.76752061]
[1746577579970,5.42765651,1842.5,1842.1,13.76752061]
[1746577580183,5.42765651,1842.5,1841.2,4.48002213]
[1746577580184,0.06784762,1842.4,1841.2,4.48002213]
[1746577580398,3.0,1842.2,1841.3,5.87867144]
[1746577580603,0.06786119,1842.2,1841.9,5.42903708]
[1746577580746,0.06786119,1842.2,1841.8,5.42928919]
[1746577580950,5.49628361,1842.2,1841.8,5.42928919]
[1746577581455,0.06786119,1842.2,1841.8,5.42934737]
[1746577581757,5.91258182,1842.2,1841.8,5.42934737]
[1746577581959,0.06786119,1842.2,1841.8,5.42924245]
[1746577582166,5.42987788,1841.7,1841.4,0.04616399]
[1746577582359,5.4974802,1841.8,1841.3,5.43072548]
[1746577582561,6.00447223,1842.1,1841.7,5.4297012]
[1746577582745,8.42922717,1841.9,1841.3,6.2260188]
[1746577582959,0.06787205,1841.8,1841.4,5.43051315]
[1746577583389,0.06787205,1841.8,1841.5,5.43030087]
[1746577583686,0.06787205,1841.8,1841.4,5.43050347]
[1746577583989,0.06787205,1841.8,1841.3,5.43087178]
[1746577584149,5.49746577,1841.8,1841.3,5.43074145]
[1746577584349,5.49746577,1841.8,1841.1,8.343]
[1746577584350,5.42978577,1841.7,1841.1,8.343]
[1746577584549,3.06787876,1841.7,1841.1,8.343]
[1746577584756,0.5758,1841.5,1841.1,13.77436794]
[1746577584954,0.64368767,1841.5,1841.2,5.43112887]
[1746577585149,0.64368767,1841.5,1841.1,13.77437921]
[1746577585355,5.43088842,1841.4,1840.9,6.18890339]
[1746577585569,0.06788964,1841.3,1841.0,5.43178148]
[1746577585783,5.49884549,1841.3,1840.9,5.43193853]
[1746577586257,6.99952939,1841.3,1840.8,11.26911802]